[Event "Early-Titled-Tuesday-Blitz-April-02-2024"]
[Site "Chess.com"]
[Date "2024.04.02"]
[Round "11"]
[White "temus_galaktionov"]
[Black "Zurability"]
[Result "1/2-1/2"]
[WhiteElo "2843"]
[BlackElo "2709"]
[TimeControl "180+1"]
[EndTime "10:08:36 PDT"]
[Termination "Game drawn - insufficient material"]

1. d4 {[%clk 0:03:00.9]} 1... Nf6 {[%clk 0:02:59.4]} 2. Nf3 {[%clk 0:02:59]}
2... e6 {[%clk 0:02:59]} 3. c4 {[%clk 0:02:55.2]} 3... b6 {[%clk 0:02:59.4]} 4.
g3 {[%clk 0:02:55]} 4... Bb7 {[%clk 0:02:58.7]} 5. Bg2 {[%clk 0:02:55.1]} 5...
Bb4+ {[%clk 0:02:59.1]} 6. Bd2 {[%clk 0:02:54.8]} 6... Bxd2+ {[%clk 0:02:58.9]}
7. Qxd2 {[%clk 0:02:55.7]} 7... O-O {[%clk 0:02:59.4]} 8. Nc3 {[%clk 0:02:51.7]}
8... d6 {[%clk 0:02:59.3]} 9. O-O {[%clk 0:02:51]} 9... Nbd7 {[%clk 0:02:59.9]}
10. Qc2 {[%clk 0:02:51.2]} 10... Qe7 {[%clk 0:03:00.2]} 11. e4 {[%clk
0:02:50.4]} 11... e5 {[%clk 0:03:00.7]} 12. d5 {[%clk 0:02:50.4]} 12... a5
{[%clk 0:02:58.9]} 13. a3 {[%clk 0:02:50.9]} 13... g6 {[%clk 0:02:54.6]} 14. b4
{[%clk 0:02:50.1]} 14... axb4 {[%clk 0:02:55.5]} 15. axb4 {[%clk 0:02:50.2]}
15... c6 {[%clk 0:02:49.1]} 16. Qb2 {[%clk 0:02:45.6]} 16... cxd5 {[%clk
0:02:45.4]} 17. cxd5 {[%clk 0:02:45.5]} 17... Rfc8 {[%clk 0:02:44.8]} 18. Nd2
{[%clk 0:02:42.9]} 18... Ne8 {[%clk 0:02:39.7]} 19. Rfc1 {[%clk 0:02:35.9]}
19... Qd8 {[%clk 0:02:35]} 20. Bh3 {[%clk 0:02:33.8]} 20... Rxa1 {[%clk
0:02:13.9]} 21. Rxa1 {[%clk 0:02:34.7]} 21... Ra8 {[%clk 0:02:13.3]} 22. Rc1
{[%clk 0:02:33.7]} 22... Ndf6 {[%clk 0:02:09.1]} 23. Nc4 {[%clk 0:02:16.2]}
23... Ba6 {[%clk 0:01:55.5]} 24. b5 {[%clk 0:02:09.2]} 24... Bc8 {[%clk
0:01:54.2]} 25. Bg2 {[%clk 0:02:09.7]} 25... Nd7 {[%clk 0:01:48.5]} 26. Ra1
{[%clk 0:02:00.3]} 26... Rxa1+ {[%clk 0:01:42.8]} 27. Qxa1 {[%clk 0:02:01.2]}
27... Qc7 {[%clk 0:01:42.9]} 28. Bf1 {[%clk 0:01:55.5]} 28... Nc5 {[%clk
0:01:42.5]} 29. Qa8 {[%clk 0:01:51.9]} 29... Kf8 {[%clk 0:01:38.9]} 30. Qc6
{[%clk 0:01:51.4]} 30... Qd8 {[%clk 0:00:44.8]} 31. Nxb6 {[%clk 0:01:44.5]}
31... Bb7 {[%clk 0:00:42.3]} 32. Nd7+ {[%clk 0:01:34]} 32... Qxd7 {[%clk
0:00:40.1]} 33. Qb6 {[%clk 0:01:33.9]} 33... Qc7 {[%clk 0:00:37.1]} 34. Qa7
{[%clk 0:01:34.1]} 34... f5 {[%clk 0:00:25.5]} 35. b6 {[%clk 0:01:32.6]} 35...
Qc8 {[%clk 0:00:25.4]} 36. exf5 {[%clk 0:01:30.4]} 36... gxf5 {[%clk 0:00:21.7]}
37. Bb5 {[%clk 0:01:21.2]} 37... Nf6 {[%clk 0:00:18.5]} 38. Bc6 {[%clk
0:00:56.4]} 38... Bxc6 {[%clk 0:00:18.3]} 39. dxc6 {[%clk 0:00:57.3]} 39... Qxc6
{[%clk 0:00:18.3]} 40. Qb8+ {[%clk 0:00:55]} 40... Ke7 {[%clk 0:00:17.2]} 41.
Qh8 {[%clk 0:00:51.4]} 41... Qxb6 {[%clk 0:00:15.4]} 42. Qg7+ {[%clk 0:00:51.3]}
42... Ke6 {[%clk 0:00:15.5]} 43. Qxf6+ {[%clk 0:00:51.2]} 43... Kxf6 {[%clk
0:00:15.1]} 44. Nd5+ {[%clk 0:00:52.1]} 44... Ke6 {[%clk 0:00:15.5]} 45. Nxb6
{[%clk 0:00:53]} 45... d5 {[%clk 0:00:16.2]} 46. Kf1 {[%clk 0:00:53]} 46... Kd6
{[%clk 0:00:13.4]} 47. Ke2 {[%clk 0:00:46.6]} 47... Kc6 {[%clk 0:00:11.1]} 48.
Nc8 {[%clk 0:00:46.5]} 48... Kd7 {[%clk 0:00:08.5]} 49. Nb6+ {[%clk 0:00:46.5]}
49... Kd6 {[%clk 0:00:09.1]} 50. Nc8+ {[%clk 0:00:46]} 50... Ke6 {[%clk
0:00:08.6]} 51. h3 {[%clk 0:00:43.6]} 51... d4 {[%clk 0:00:08.8]} 52. g4 {[%clk
0:00:43.7]} 52... e4 {[%clk 0:00:08.4]} 53. gxf5+ {[%clk 0:00:42.6]} 53... Kxf5
{[%clk 0:00:09.3]} 54. Nd6+ {[%clk 0:00:42.4]} 54... Kf4 {[%clk 0:00:09.8]} 55.
Ne8 {[%clk 0:00:37.9]} 55... Nb3 {[%clk 0:00:05.3]} 56. Nf6 {[%clk 0:00:35.3]}
56... d3+ {[%clk 0:00:05.8]} 57. Ke1 {[%clk 0:00:35.3]} 57... Kf3 {[%clk
0:00:06.4]} 58. Nxh7 {[%clk 0:00:29.6]} 58... d2+ {[%clk 0:00:06.3]} 59. Kd1
{[%clk 0:00:26.4]} 59... Kxf2 {[%clk 0:00:06.9]} 60. Ng5 {[%clk 0:00:20.5]}
60... e3 {[%clk 0:00:07]} 61. Ne4+ {[%clk 0:00:20.2]} 61... Kf3 {[%clk
0:00:05.3]} 62. Nc3 {[%clk 0:00:20.4]} 62... Nc5 {[%clk 0:00:02.1]} 63. h4
{[%clk 0:00:20.4]} 63... Nd3 {[%clk 0:00:02.5]} 64. h5 {[%clk 0:00:20.9]} 64...
Nf2+ {[%clk 0:00:02.4]} 65. Kc2 {[%clk 0:00:21.4]} 65... e2 {[%clk 0:00:02.2]}
66. Kxd2 {[%clk 0:00:20.2]} 66... Ng4 {[%clk 0:00:01.5]} 67. Nxe2 {[%clk
0:00:20.2]} 67... Nh6 {[%clk 0:00:02.2]} 68. Nd4+ {[%clk 0:00:19.8]} 68... Kg4
{[%clk 0:00:03.1]} 69. Ne6 {[%clk 0:00:19.6]} 69... Kxh5 {[%clk 0:00:04]}
1/2-1/2

[Event "Early-Titled-Tuesday-Blitz-April-02-2024"]
[Site "Chess.com"]
[Date "2024.04.02"]
[Round "11"]
[White "AnaKuchava"]
[Black "MIss_MIaMI"]
[Result "0-1"]
[WhiteElo "2188"]
[BlackElo "2369"]
[TimeControl "180+1"]
[EndTime "10:08:38 PDT"]
[Termination "MIss_MIaMI won by resignation"]

1. d4 {[%clk 0:03:00.9]} 1... c5 {[%clk 0:03:00]} 2. d5 {[%clk 0:02:56.5]} 2...
g6 {[%clk 0:03:00.3]} 3. c4 {[%clk 0:02:55.9]} 3... Bg7 {[%clk 0:03:00.8]} 4.
Nf3 {[%clk 0:02:55.2]} 4... d6 {[%clk 0:03:00.4]} 5. e4 {[%clk 0:02:54.4]} 5...
Bg4 {[%clk 0:02:59.2]} 6. Be2 {[%clk 0:02:52.5]} 6... Bxf3 {[%clk 0:02:59.3]} 7.
Bxf3 {[%clk 0:02:51.8]} 7... Nd7 {[%clk 0:02:59.9]} 8. O-O {[%clk 0:02:46.9]}
8... Ngf6 {[%clk 0:02:59.3]} 9. Nc3 {[%clk 0:02:47.2]} 9... O-O {[%clk
0:02:58.9]} 10. Bf4 {[%clk 0:02:46.9]} 10... a6 {[%clk 0:02:57.1]} 11. a4 {[%clk
0:02:46.6]} 11... b6 {[%clk 0:02:57.7]} 12. Re1 {[%clk 0:02:46.6]} 12... Ne8
{[%clk 0:02:58.1]} 13. Qd2 {[%clk 0:02:45.1]} 13... Ne5 {[%clk 0:02:54.9]} 14.
Be2 {[%clk 0:02:40.1]} 14... f5 {[%clk 0:02:33.5]} 15. Bh6 {[%clk 0:02:36.4]}
15... Qd7 {[%clk 0:01:58.7]} 16. f4 {[%clk 0:02:16]} 16... Bxh6 {[%clk
0:01:56.8]} 17. Rf1 {[%clk 0:01:49]} 17... Nf7 {[%clk 0:01:34.7]} 18. Bf3 {[%clk
0:01:46.3]} 18... Nf6 {[%clk 0:01:29.4]} 19. Rae1 {[%clk 0:01:40.2]} 19... fxe4
{[%clk 0:01:23.1]} 20. Nxe4 {[%clk 0:01:32.9]} 20... Nxe4 {[%clk 0:01:24]} 21.
Bxe4 {[%clk 0:01:33.8]} 21... Rae8 {[%clk 0:01:09.5]} 22. Qd3 {[%clk 0:01:32.7]}
22... Nh8 {[%clk 0:00:58.3]} 23. f5 {[%clk 0:01:26.1]} 23... Rf6 {[%clk
0:00:40.2]} 24. fxg6 {[%clk 0:01:22.7]} 24... hxg6 {[%clk 0:00:36.6]} 25. h3
{[%clk 0:00:37.6]} 25... Kg7 {[%clk 0:00:34.4]} 26. g4 {[%clk 0:00:30.4]} 26...
Bf4 {[%clk 0:00:29]} 27. Re2 {[%clk 0:00:19.9]} 27... Ref8 {[%clk 0:00:27.1]}
28. Rg2 {[%clk 0:00:19.3]} 28... Be5 {[%clk 0:00:23.2]} 29. Rxf6 {[%clk
0:00:15.4]} 29... Rxf6 {[%clk 0:00:23.8]} 30. g5 {[%clk 0:00:16.1]} 30... Bd4+
{[%clk 0:00:24.2]} 31. Kh2 {[%clk 0:00:15.7]} 31... Rf4 {[%clk 0:00:23.5]} 32.
Bf3 {[%clk 0:00:05.5]} 32... Be5 {[%clk 0:00:19.9]} 33. Kh1 {[%clk 0:00:04.9]}
33... Qf5 {[%clk 0:00:20.2]} 34. Qxf5 {[%clk 0:00:03]} 34... Rxf5 {[%clk
0:00:19.8]} 35. Be4 {[%clk 0:00:03.9]} 35... Rf4 {[%clk 0:00:18.7]} 36. Re2
{[%clk 0:00:02.8]} 36... Nf7 {[%clk 0:00:14.3]} 37. Kg2 {[%clk 0:00:02.9]} 37...
Nxg5 {[%clk 0:00:14.5]} 38. Bd3 {[%clk 0:00:03.3]} 38... Rd4 {[%clk 0:00:12.5]}
39. Re3 {[%clk 0:00:01.7]} 39... Bf6 {[%clk 0:00:04.2]} 40. b3 {[%clk
0:00:01.9]} 40... Nh7 {[%clk 0:00:03.8]} 41. Bc2 {[%clk 0:00:01.7]} 41... Rf4
{[%clk 0:00:04.1]} 42. Kg3 {[%clk 0:00:01.8]} 42... Rf1 {[%clk 0:00:04.8]} 43.
Re6 {[%clk 0:00:01.8]} 43... Rc1 {[%clk 0:00:04.5]} 44. Bd3 {[%clk 0:00:01.7]}
44... Nf8 {[%clk 0:00:05.1]} 45. Re3 {[%clk 0:00:01.4]} 45... Rc3 {[%clk
0:00:05.8]} 46. Rf3 {[%clk 0:00:02.2]} 46... Be5+ {[%clk 0:00:05.7]} 47. Kg2
{[%clk 0:00:01.9]} 47... Nd7 {[%clk 0:00:06.3]} 48. h4 {[%clk 0:00:02.8]} 48...
Nf6 {[%clk 0:00:06.8]} 49. h5 {[%clk 0:00:03.7]} 49... Nxh5 {[%clk 0:00:07.3]}
50. Be4 {[%clk 0:00:03.5]} 50... Rxf3 {[%clk 0:00:06.5]} 51. Bxf3 {[%clk
0:00:04.4]} 51... Nf4+ {[%clk 0:00:06.9]} 52. Kf1 {[%clk 0:00:04.4]} 52... g5
{[%clk 0:00:07.4]} 53. Bg4 {[%clk 0:00:05.3]} 53... Kf6 {[%clk 0:00:07.9]} 54.
Kf2 {[%clk 0:00:05.8]} 54... a5 {[%clk 0:00:08.4]} 55. Kf3 {[%clk 0:00:06.7]}
55... Nd3 {[%clk 0:00:08.6]} 56. Bd7 {[%clk 0:00:06.8]} 56... Nc1 {[%clk
0:00:09]} 57. b4 {[%clk 0:00:06.6]} 57... Nb3 {[%clk 0:00:09.7]} 58. bxa5 {[%clk
0:00:06.3]} 58... Nxa5 {[%clk 0:00:09.4]} 59. Bb5 {[%clk 0:00:07.2]} 59... Bd4
{[%clk 0:00:09.3]} 60. Kg4 {[%clk 0:00:08.1]} 60... Be3 {[%clk 0:00:09.3]} 61.
Bd7 {[%clk 0:00:09]} 61... Bf4 {[%clk 0:00:09.8]} 62. Be8 {[%clk 0:00:09.2]}
62... Nxc4 {[%clk 0:00:10]} 63. Bd7 {[%clk 0:00:10.1]} 63... Nb2 {[%clk
0:00:10.7]} 64. a5 {[%clk 0:00:10.4]} 64... bxa5 {[%clk 0:00:10.7]} 0-1

[Event "Early-Titled-Tuesday-Blitz-April-02-2024"]
[Site "Chess.com"]
[Date "2024.04.02"]
[Round "11"]
[White "LornerAcosta"]
[Black "francyIM"]
[Result "0-1"]
[WhiteElo "2629"]
[BlackElo "2802"]
[TimeControl "180+1"]
[EndTime "10:08:48 PDT"]
[Termination "francyIM won by resignation"]

1. Nf3 {[%clk 0:02:57.9]} 1... g6 {[%clk 0:02:39.6]} 2. d4 {[%clk 0:02:57.4]}
2... Bg7 {[%clk 0:02:40.5]} 3. c3 {[%clk 0:02:55.2]} 3... Nf6 {[%clk 0:02:40.7]}
4. Bf4 {[%clk 0:02:55.6]} 4... Nh5 {[%clk 0:02:39.9]} 5. Bd2 {[%clk 0:02:50.3]}
5... d6 {[%clk 0:02:31.6]} 6. e4 {[%clk 0:02:49.3]} 6... O-O {[%clk 0:02:30.5]}
7. Be2 {[%clk 0:02:46.4]} 7... e5 {[%clk 0:02:29.8]} 8. O-O {[%clk 0:02:44.3]}
8... Nc6 {[%clk 0:02:14.3]} 9. Be3 {[%clk 0:02:41.7]} 9... Re8 {[%clk 0:02:01]}
10. Nbd2 {[%clk 0:02:37.2]} 10... Nf6 {[%clk 0:01:37.9]} 11. dxe5 {[%clk
0:02:22.8]} 11... Nxe5 {[%clk 0:01:33.3]} 12. h3 {[%clk 0:02:14.1]} 12... Bd7
{[%clk 0:01:15.5]} 13. Qc2 {[%clk 0:02:06.3]} 13... Nxf3+ {[%clk 0:01:11.5]} 14.
Bxf3 {[%clk 0:01:59.7]} 14... Bc6 {[%clk 0:01:11.3]} 15. Rfe1 {[%clk 0:02:00.2]}
15... Nd7 {[%clk 0:01:10.2]} 16. Bd4 {[%clk 0:01:54.5]} 16... Qh4 {[%clk
0:01:09.3]} 17. Nc4 {[%clk 0:00:51.2]} 17... Nf6 {[%clk 0:00:51.8]} 18. Nd2
{[%clk 0:00:49.7]} 18... h6 {[%clk 0:00:51.8]} 19. Rad1 {[%clk 0:00:42]} 19...
Nh7 {[%clk 0:00:50.9]} 20. Be3 {[%clk 0:00:17.5]} 20... Ng5 {[%clk 0:00:45.6]}
21. Bxg5 {[%clk 0:00:16.6]} 21... Qxg5 {[%clk 0:00:45.3]} 22. g3 {[%clk
0:00:15.5]} 22... h5 {[%clk 0:00:43.8]} 23. h4 {[%clk 0:00:15.7]} 23... Qa5
{[%clk 0:00:41.9]} 24. Nb3 {[%clk 0:00:11.9]} 24... Qa4 {[%clk 0:00:32.9]} 25.
Rd2 {[%clk 0:00:11.4]} 25... Re7 {[%clk 0:00:27.6]} 26. Nd4 {[%clk 0:00:11.1]}
26... Bxd4 {[%clk 0:00:20.6]} 27. cxd4 {[%clk 0:00:07.3]} 27... Qxc2 {[%clk
0:00:19.8]} 28. Rxc2 {[%clk 0:00:08.2]} 28... Rae8 {[%clk 0:00:19.9]} 29. Rce2
{[%clk 0:00:07.3]} 29... f5 {[%clk 0:00:18.6]} 30. d5 {[%clk 0:00:07.6]} 30...
Bb5 {[%clk 0:00:18.1]} 31. Re3 {[%clk 0:00:08.1]} 31... fxe4 {[%clk 0:00:17.6]}
32. Rxe4 {[%clk 0:00:07.7]} 32... Rxe4 {[%clk 0:00:18]} 33. Rxe4 {[%clk
0:00:07.8]} 33... Rxe4 {[%clk 0:00:18.2]} 34. Bxe4 {[%clk 0:00:08.7]} 34... Kg7
{[%clk 0:00:18.9]} 35. f4 {[%clk 0:00:08.2]} 35... Kf6 {[%clk 0:00:19.4]} 36.
Kf2 {[%clk 0:00:08.6]} 36... Bd7 {[%clk 0:00:20.1]} 37. Ke3 {[%clk 0:00:08.7]}
37... c5 {[%clk 0:00:20.2]} 38. dxc6 {[%clk 0:00:07.8]} 38... bxc6 {[%clk
0:00:21.1]} 39. Kd4 {[%clk 0:00:08.2]} 39... a5 {[%clk 0:00:17.3]} 40. a3 {[%clk
0:00:07.3]} 40... Be8 {[%clk 0:00:15.6]} 41. b4 {[%clk 0:00:07.3]} 41... axb4
{[%clk 0:00:14.7]} 42. axb4 {[%clk 0:00:08.2]} 42... Ke6 {[%clk 0:00:15.4]} 43.
Bd3 {[%clk 0:00:07.8]} 43... Ke7 {[%clk 0:00:13.9]} 44. Be4 {[%clk 0:00:08.1]}
44... Kd7 {[%clk 0:00:13.7]} 45. Bd3 {[%clk 0:00:08.4]} 45... Kc7 {[%clk
0:00:14.2]} 46. Be4 {[%clk 0:00:08.7]} 46... Kb6 {[%clk 0:00:14.9]} 47. Bd3
{[%clk 0:00:09.2]} 47... Bf7 {[%clk 0:00:15.4]} 48. Be2 {[%clk 0:00:09.1]} 48...
c5+ {[%clk 0:00:15.9]} 49. bxc5+ {[%clk 0:00:08.9]} 49... dxc5+ {[%clk
0:00:16.8]} 50. Ke5 {[%clk 0:00:08.2]} 50... c4 {[%clk 0:00:15]} 51. Kd4 {[%clk
0:00:06.3]} 51... Kb5 {[%clk 0:00:14.5]} 52. Bd1 {[%clk 0:00:05.7]} 52... Kb4
{[%clk 0:00:14.9]} 53. Bc2 {[%clk 0:00:06.2]} 53... c3 {[%clk 0:00:15.3]} 54.
Bd3 {[%clk 0:00:06.4]} 54... Be8 {[%clk 0:00:14.2]} 55. f5 {[%clk 0:00:05.9]}
55... gxf5 {[%clk 0:00:14.1]} 56. Bxf5 {[%clk 0:00:06.8]} 56... Kb3 {[%clk
0:00:15]} 57. Ke5 {[%clk 0:00:06.2]} 57... Kb2 {[%clk 0:00:14.6]} 58. Kf4 {[%clk
0:00:06]} 58... Bd7 {[%clk 0:00:14.6]} 59. Bxd7 {[%clk 0:00:03.3]} 59... c2
{[%clk 0:00:14.4]} 60. g4 {[%clk 0:00:03.3]} 60... c1=Q+ {[%clk 0:00:15.3]} 61.
Kf5 {[%clk 0:00:02.9]} 61... Qc2+ {[%clk 0:00:13]} 62. Kg5 {[%clk 0:00:03.4]}
62... Qd2+ {[%clk 0:00:13.2]} 63. Kxh5 {[%clk 0:00:03.4]} 63... Qxd7 {[%clk
0:00:13.9]} 64. g5 {[%clk 0:00:04.3]} 64... Qh7+ {[%clk 0:00:14.3]} 65. Kg4
{[%clk 0:00:04.9]} 65... Kc3 {[%clk 0:00:15.1]} 66. h5 {[%clk 0:00:05.8]} 66...
Qe4+ {[%clk 0:00:15.5]} 0-1

[Event "Early-Titled-Tuesday-Blitz-April-02-2024"]
[Site "Chess.com"]
[Date "2024.04.02"]
[Round "11"]
[White "sorch29"]
[Black "tortorchess"]
[Result "1-0"]
[WhiteElo "2435"]
[BlackElo "2227"]
[TimeControl "180+1"]
[EndTime "10:08:49 PDT"]
[Termination "sorch29 won on time"]

1. c4 {[%clk 0:03:00.9]} 1... c5 {[%clk 0:02:58.4]} 2. Nf3 {[%clk 0:02:59.1]}
2... Nc6 {[%clk 0:02:58.1]} 3. d4 {[%clk 0:02:53.3]} 3... cxd4 {[%clk 0:02:54]}
4. Nxd4 {[%clk 0:02:54.2]} 4... e5 {[%clk 0:02:50.2]} 5. Nb5 {[%clk 0:02:49.9]}
5... d6 {[%clk 0:02:50]} 6. g3 {[%clk 0:02:43.1]} 6... Nf6 {[%clk 0:02:49.4]} 7.
Bg2 {[%clk 0:02:42.7]} 7... Be7 {[%clk 0:02:48.9]} 8. N1c3 {[%clk 0:02:40.3]}
8... a6 {[%clk 0:02:48.7]} 9. Na3 {[%clk 0:02:40]} 9... Be6 {[%clk 0:02:48.2]}
10. O-O {[%clk 0:02:38.2]} 10... O-O {[%clk 0:02:47]} 11. Bg5 {[%clk 0:02:36.5]}
11... Rc8 {[%clk 0:02:41.9]} 12. Bxf6 {[%clk 0:02:36.1]} 12... Bxf6 {[%clk
0:02:42]} 13. Nd5 {[%clk 0:02:36.9]} 13... Bxd5 {[%clk 0:02:40]} 14. Bxd5 {[%clk
0:02:32.7]} 14... Qc7 {[%clk 0:02:39.6]} 15. Nc2 {[%clk 0:02:26.4]} 15... Rfd8
{[%clk 0:02:33.8]} 16. h4 {[%clk 0:01:59.7]} 16... Ne7 {[%clk 0:02:29]} 17. Ne3
{[%clk 0:01:58.3]} 17... g6 {[%clk 0:02:23.3]} 18. Rc1 {[%clk 0:01:41.1]} 18...
Bg7 {[%clk 0:02:21.5]} 19. Qb3 {[%clk 0:01:39.2]} 19... Rb8 {[%clk 0:02:09.2]}
20. c5 {[%clk 0:01:33.8]} 20... Nxd5 {[%clk 0:02:06.5]} 21. Nxd5 {[%clk
0:01:33.2]} 21... Qd7 {[%clk 0:02:05.5]} 22. Rfd1 {[%clk 0:01:15.5]} 22... Kh8
{[%clk 0:01:49.5]} 23. Nb6 {[%clk 0:01:07.7]} 23... Qe7 {[%clk 0:01:37.3]} 24.
cxd6 {[%clk 0:00:48.7]} 24... Rxd6 {[%clk 0:01:35.2]} 25. Nc8 {[%clk 0:00:49]}
25... Rxd1+ {[%clk 0:01:33.3]} 26. Qxd1 {[%clk 0:00:49.7]} 26... Qf8 {[%clk
0:01:27.8]} 27. Qd7 {[%clk 0:00:46.9]} 27... h5 {[%clk 0:01:13.7]} 28. Qc7
{[%clk 0:00:44.9]} 28... Bh6 {[%clk 0:00:47.7]} 29. Rc2 {[%clk 0:00:36.9]} 29...
Rxc8 {[%clk 0:00:43.3]} 30. Qxc8 {[%clk 0:00:37.2]} 30... Qxc8 {[%clk
0:00:41.2]} 31. Rxc8+ {[%clk 0:00:38.1]} 31... Kg7 {[%clk 0:00:41.5]} 32. Rb8
{[%clk 0:00:38]} 32... b5 {[%clk 0:00:40.2]} 33. Rb6 {[%clk 0:00:38.2]} 33...
Bc1 {[%clk 0:00:39]} 34. b3 {[%clk 0:00:37.4]} 34... Bb2 {[%clk 0:00:35.4]} 35.
Rxa6 {[%clk 0:00:37.4]} 35... b4 {[%clk 0:00:35.4]} 36. Ra4 {[%clk 0:00:37.2]}
36... Bc3 {[%clk 0:00:34.9]} 37. Kg2 {[%clk 0:00:36.6]} 37... f6 {[%clk
0:00:34.6]} 38. Ra7+ {[%clk 0:00:34.3]} 38... Kf8 {[%clk 0:00:34.6]} 39. Ra6
{[%clk 0:00:35.2]} 39... Kf7 {[%clk 0:00:34.3]} 40. Kf3 {[%clk 0:00:35.9]} 40...
f5 {[%clk 0:00:33.7]} 41. e3 {[%clk 0:00:36.3]} 41... e4+ {[%clk 0:00:28.4]} 42.
Ke2 {[%clk 0:00:37.2]} 42... Be5 {[%clk 0:00:25.2]} 43. Rb6 {[%clk 0:00:37]}
43... Bc3 {[%clk 0:00:24.8]} 44. Rc6 {[%clk 0:00:37.3]} 44... Bb2 {[%clk
0:00:22.3]} 45. Rc4 {[%clk 0:00:36.7]} 45... Ba3 {[%clk 0:00:20.5]} 46. Rc7+
{[%clk 0:00:34.6]} 46... Kf6 {[%clk 0:00:20.5]} 47. Rc6+ {[%clk 0:00:35.5]}
47... Kf7 {[%clk 0:00:20.6]} 48. Rb6 {[%clk 0:00:36]} 48... Kg7 {[%clk
0:00:18.8]} 49. f3 {[%clk 0:00:32.3]} 49... exf3+ {[%clk 0:00:17]} 50. Kxf3
{[%clk 0:00:32.5]} 50... Kf7 {[%clk 0:00:17.1]} 51. e4 {[%clk 0:00:31.9]} 51...
Kg7 {[%clk 0:00:15.2]} 52. exf5 {[%clk 0:00:28.8]} 52... gxf5 {[%clk 0:00:15.5]}
53. Kf4 {[%clk 0:00:28.4]} 53... Bc1+ {[%clk 0:00:12]} 54. Kxf5 {[%clk
0:00:28.7]} 54... Bd2 {[%clk 0:00:12.4]} 55. Rb7+ {[%clk 0:00:27.4]} 55... Kh6
{[%clk 0:00:12]} 56. Rb6+ {[%clk 0:00:26.7]} 56... Kg7 {[%clk 0:00:12.2]} 57.
Rg6+ {[%clk 0:00:27.6]} 57... Kh7 {[%clk 0:00:12.1]} 58. Rg5 {[%clk 0:00:28.1]}
58... Kh6 {[%clk 0:00:11.4]} 59. Rg8 {[%clk 0:00:26.6]} 59... Kh7 {[%clk
0:00:11.5]} 60. Rd8 {[%clk 0:00:27]} 60... Be3 {[%clk 0:00:08.8]} 61. Rd3 {[%clk
0:00:27]} 61... Bc1 {[%clk 0:00:08.5]} 62. Rd4 {[%clk 0:00:26.4]} 62... Ba3
{[%clk 0:00:06.3]} 63. Kg5 {[%clk 0:00:26.6]} 63... Kg7 {[%clk 0:00:05.7]} 64.
Kxh5 {[%clk 0:00:26.8]} 64... Kf6 {[%clk 0:00:04.4]} 65. g4 {[%clk 0:00:25]}
65... Ke5 {[%clk 0:00:04.7]} 66. Rc4 {[%clk 0:00:25]} 66... Kf6 {[%clk
0:00:04.6]} 67. g5+ {[%clk 0:00:25.7]} 67... Kf5 {[%clk 0:00:04.9]} 68. g6
{[%clk 0:00:26.2]} 68... Kf6 {[%clk 0:00:05.1]} 69. Rc6+ {[%clk 0:00:26.4]}
69... Kg7 {[%clk 0:00:05.3]} 70. Kg5 {[%clk 0:00:27.1]} 70... Bc1+ {[%clk
0:00:05.1]} 71. Kf5 {[%clk 0:00:27.8]} 71... Bh6 {[%clk 0:00:03.4]} 72. Rc7+
{[%clk 0:00:27.5]} 72... Kg8 {[%clk 0:00:03.5]} 73. Kf6 {[%clk 0:00:24.3]} 1-0